bitfinex/quotes_SOLUSD_20241231
["timestamp","ask_amount","ask_price","bid_price","bid_amount"]
[1735660210331,23.776884,198.15,198.06,15.32917541]
[1735660210531,23.776884,198.15,198.05,35.32917541]
[1735660211042,23.776884,198.13,198.02,15.32917541]
[1735660211350,23.776884,198.13,197.95,142.80166286]
[1735660211351,23.776884,198.11,197.95,142.80166286]
[1735660211549,23.776884,198.11,198.0,15.32917541]
[1735660211732,23.776884,198.11,198.01,15.32917541]
[1735660212352,23.776884,198.11,198.02,15.32917541]
[1735660212670,1.5182,198.12,198.04,15.32917541]
[1735660212836,1.5182,198.12,198.05,15.32917541]
[1735660213147,1.5182,198.12,198.04,15.32917541]
[1735660213353,1.5182,198.12,198.05,15.32917541]
[1735660213529,1.5182,198.12,198.04,15.32917541]
[1735660214254,1.5182,198.12,198.05,15.32917541]
[1735660214632,1.5182,198.12,198.06,15.32917541]
[1735660214827,1.5182,198.12,198.08,15.32917541]
[1735660215041,1.5182,198.12,198.09,15.32917541]
[1735660215255,1.5182,198.12,198.03,157.6]
[1735660215456,1.5182,198.12,198.07,15.32917541]
[1735660215642,1.5182,198.12,198.08,15.32917541]
[1735660215953,1.5182,198.12,198.09,15.32917541]
[1735660216332,1.5182,198.16,198.09,15.32917541]
[1735660216538,1.5182,198.16,198.1,15.32917541]
[1735660217353,1.5182,198.16,198.11,15.32917541]
[1735660218041,1.5182,198.16,198.12,15.32917541]
[1735660218436,1.5182,198.16,198.11,15.32917541]
[1735660218837,1.5182,198.22,198.14,15.32917541]
[1735660219352,1.5182,198.22,198.13,15.32917541]
[1735660219553,1.5182,198.22,198.14,15.32917541]
[1735660219736,1.5182,198.22,198.13,15.32917541]
[1735660219935,23.776884,198.21,198.12,15.32917541]
[1735660220229,23.776884,198.21,198.13,15.32917541]
[1735660221047,23.776884,198.21,198.11,15.32917541]
[1735660221245,23.776884,198.21,198.1,15.32917541]
[1735660221451,23.776884,198.21,198.09,15.32917541]
[1735660221844,23.776884,198.21,198.09,20.0]
[1735660222046,23.776884,198.21,198.11,15.32917541]
[1735660222560,23.776884,198.21,198.1,15.32917541]
[1735660222937,23.776884,198.21,198.11,15.32917541]
[1735660224159,23.776884,198.21,198.1,15.32917541]
[1735660225156,23.776884,198.21,198.11,15.32917541]
[1735660226661,23.776884,198.21,198.1,15.32917541]
[1735660227847,43.776884,198.19,198.05,15.32917541]
[1735660228052,23.776884,198.17,198.05,152.92917541]
[1735660228276,23.776884,198.17,198.08,20.0]
[1735660228936,23.776884,198.17,198.08,35.32917541]
[1735660232147,23.776884,198.17,198.08,20.0]
[1735660234166,23.776884,198.17,198.09,15.32917541]
[1735660234465,23.776884,198.17,198.09,9.80644317]
[1735660234963,1.5416,198.2,198.12,20.0]
[1735660235158,1.5416,198.25,198.19,9.80644317]
[1735660235466,1.5416,198.25,198.18,9.80644317]
[1735660235670,1.5416,198.25,198.17,9.80644317]
[1735660236047,1.5416,198.25,198.16,29.80644317]
[1735660236247,1.5416,198.25,198.16,35.31354286]
[1735660237070,1.5416,198.25,198.16,20.0]
[1735660237247,1.5416,198.25,198.16,35.31354286]
[1735660238871,23.776884,198.24,198.13,15.31354286]
[1735660239043,23.776884,198.24,198.12,15.31354286]
[1735660239448,23.776884,198.24,198.13,35.31354286]
[1735660241259,23.776884,198.24,198.14,15.31354286]
[1735660241465,23.776884,198.24,198.15,15.31354286]
[1735660241661,23.776884,198.24,198.12,20.0]
[1735660241662,23.776884,198.24,198.17,15.31354286]
[1735660241866,23.776884,198.24,198.16,15.31354286]
[1735660242068,23.776884,198.24,198.17,15.31354286]
[1735660242273,1.5416,198.25,198.17,15.31354286]
[1735660242575,23.776884,198.24,198.16,15.31354286]
[1735660243075,23.776884,198.24,198.15,15.31354286]
[1735660243276,23.776884,198.24,198.14,15.31354286]
[1735660243968,23.776884,198.24,198.13,15.31354286]
[1735660244171,23.776884,198.22,198.12,15.31354286]
[1735660244965,23.776884,198.22,198.09,150.2203]
[1735660244966,23.776884,198.2,198.09,15.31354286]
[1735660245271,23.776884,198.2,198.08,15.31354286]
[1735660245457,23.776884,198.14,198.02,137.6]
[1735660245662,23.776884,198.14,198.03,15.31354286]
[1735660245861,23.776884,198.14,198.02,15.31354286]
[1735660246282,23.776884,198.14,198.0,15.31354286]
[1735660246483,1.5881,198.15,198.0,15.31354286]
[1735660246484,23.776884,198.1,198.0,15.31354286]
[1735660246687,23.776884,198.1,198.01,15.31354286]
[1735660247577,23.776884,198.1,198.0,35.31354286]
[1735660248195,23.776884,198.1,197.97,137.6]
[1735660248498,23.776884,198.1,198.0,15.31354286]
[1735660248877,6.5709,198.07,197.99,15.31354286]
[1735660249076,23.776884,198.06,197.98,15.31354286]
[1735660249293,23.776884,198.06,197.97,15.31354286]
[1735660249492,23.776884,198.06,197.95,15.31354286]
[1735660249787,23.776884,198.06,197.93,15.31354286]
[1735660249996,23.776884,198.06,197.94,15.31354286]
[1735660250493,23.776884,198.06,197.95,15.31354286]
[1735660251176,23.776884,198.06,197.96,15.31354286]
[1735660251986,23.776884,198.06,197.94,20.0]
[1735660252195,23.776884,198.06,197.96,15.31354286]
[1735660252576,23.776884,198.06,197.97,15.31354286]
[1735660252895,23.776884,198.06,197.98,15.31354286]
[1735660253107,23.776884,198.06,197.99,15.31354286]
[1735660253465,23.776884,198.06,197.98,15.31354286]
[1735660253795,23.776884,198.06,197.99,15.31354286]
[1735660253970,23.776884,198.06,197.98,15.31354286]
[1735660254988,23.776884,198.06,197.99,15.31354286]
[1735660255199,6.5709,198.07,198.0,15.31354286]
[1735660255495,6.5709,198.07,198.01,15.31354286]
[1735660256981,6.5709,198.07,198.02,15.31354286]
[1735660257368,6.5709,198.07,198.01,15.31354286]
[1735660257575,6.5709,198.07,198.0,35.31354286]
[1735660258182,23.776884,198.06,197.99,15.31354286]
[1735660258382,23.776884,198.06,197.98,15.31354286]
[1735660260681,23.776884,198.06,197.97,152.91354286]
[1735660261589,23.776884,198.06,197.98,15.31354286]
[1735660261798,23.776884,198.06,197.99,15.31354286]
[1735660262176,6.5709,198.07,197.99,15.31354286]
[1735660262367,6.5709,198.07,198.02,15.31354286]
[1735660262879,1.564,198.09,198.04,15.31354286]
[1735660263076,1.564,198.09,198.03,15.31354286]
[1735660264888,1.564,198.09,198.0,20.0]
[1735660265198,1.564,198.09,198.03,15.31354286]
[1735660265571,6.0264,198.12,198.06,15.31354286]
[1735660265973,6.0264,198.12,198.07,15.31354286]
[1735660266176,6.0264,198.12,198.06,15.31354286]
[1735660266989,23.776884,198.11,198.0,15.31354286]
[1735660267178,23.776884,198.11,198.01,15.31354286]
[1735660267976,23.776884,198.11,198.02,15.31354286]
[1735660268388,23.776884,198.11,198.01,15.31354286]
[1735660269173,23.776884,198.11,198.02,15.31354286]
[1735660269408,23.776884,198.11,197.96,150.2283]
[1735660269581,23.776884,198.11,198.01,15.31354286]
[1735660271318,23.776884,198.11,198.04,15.31354286]
[1735660271488,6.0264,198.12,198.06,15.31354286]
[1735660272203,6.0264,198.12,198.0,165.53974286]
[1735660272204,1.5707,198.14,198.08,15.31354286]
[1735660272419,6.4225,198.17,198.0,180.72974286]
[1735660272420,6.4225,198.17,198.11,15.31354286]
[1735660272710,1.6114,198.19,198.13,15.31354286]
[1735660273217,1.6114,198.19,198.04,160.9326]
[1735660273218,1.6114,198.19,198.12,15.31354286]
[1735660273413,1.6114,198.19,198.13,15.31354286]
[1735660273789,1.6114,198.24,198.18,15.31354286]
[1735660273983,1.6114,198.24,198.2,15.31354286]
[1735660274225,6.4225,198.27,198.2,15.31354286]
[1735660274390,6.4225,198.27,198.19,15.31354286]
[1735660274884,23.776884,198.26,198.19,15.31354286]
[1735660275081,6.4225,198.27,198.19,15.31354286]
[1735660275502,6.4225,198.27,198.2,15.31354286]
[1735660275891,6.4225,198.27,198.21,15.31354286]
[1735660276100,1.6114,198.29,198.21,15.31354286]
[1735660276604,1.6114,198.29,198.22,15.31354286]
[1735660276904,1.6114,198.29,198.23,15.31354286]
[1735660277602,6.4225,198.32,198.24,15.31354286]
[1735660279498,6.4225,198.32,198.23,35.31354286]
[1735660279699,23.776884,198.31,198.23,20.0]
[1735660279903,23.776884,198.31,198.21,15.31354286]
[1735660280102,23.776884,198.31,198.16,150.2154]
[1735660280103,23.776884,198.31,198.2,15.31354286]
[1735660280304,23.776884,198.31,198.17,15.31354286]
[1735660280826,23.776884,198.31,198.16,15.31354286]
[1735660281589,23.776884,198.29,198.16,15.31354286]
[1735660283598,23.776884,198.29,198.17,15.31354286]
[1735660285514,23.776884,198.29,198.15,15.31354286]
[1735660285816,23.776884,198.29,198.17,15.31354286]
[1735660286198,23.776884,198.29,198.16,15.31354286]
[1735660287301,23.776884,198.29,198.17,15.31354286]
[1735660287502,23.776884,198.29,198.18,15.31354286]
[1735660287703,23.776884,198.29,198.17,15.31354286]
[1735660290097,23.776884,198.29,198.18,15.31354286]
[1735660290293,23.776884,198.29,198.16,20.0]
[1735660291297,23.776884,198.29,198.16,35.31354286]
[1735660292102,23.776884,198.29,198.17,15.31354286]
[1735660292304,23.776884,198.29,198.16,35.31354286]
[1735660292504,23.776884,198.29,198.17,15.31354286]
[1735660294434,23.776884,198.29,198.18,15.31354286]
[1735660296135,23.776884,198.29,198.2,15.31354286]
[1735660301323,1.6114,198.3,198.2,15.31354286]
[1735660301529,1.6114,198.3,198.22,15.31354286]
[1735660302330,1.6114,198.3,198.21,15.31354286]
[1735660303032,23.776884,198.29,198.2,20.0]
[1735660304428,23.776884,198.29,198.2,15.31354286]
[1735660304635,1.6114,198.3,198.19,12.6135]
[1735660304929,1.6114,198.3,198.25,15.31354286]
[1735660305818,1.6114,198.3,198.24,15.31354286]
[1735660306137,1.6114,198.3,198.23,15.31354286]
[1735660306311,1.6114,198.3,198.22,35.31354286]
[1735660306626,1.6114,198.3,198.23,15.31354286]
[1735660307207,1.6114,198.3,198.2,15.31354286]
[1735660307412,23.776884,198.29,198.18,15.31354286]
[1735660307722,23.776884,198.29,198.17,15.31354286]
[1735660308112,23.776884,198.29,198.18,20.0]
[1735660308312,23.776884,198.29,198.17,15.31354286]
[1735660308512,23.776884,198.29,198.19,15.31354286]
[1735660308735,23.776884,198.29,198.2,15.31354286]
[1735660308932,1.6114,198.3,198.23,15.31354286]
[1735660310231,1.6114,198.3,198.22,15.31354286]
[1735660311233,1.6114,198.3,198.23,35.31354286]
[1735660311424,1.6114,198.3,198.24,15.31354286]
[1735660313135,7.5345,198.42,198.28,15.31354286]
[1735660313527,43.776884,198.38,198.28,15.31354286]
[1735660313927,43.776884,198.38,198.22,150.2117]
[1735660313928,43.776884,198.38,198.27,15.31354286]
[1735660314737,43.776884,198.38,198.26,15.31354286]
[1735660315342,43.776884,198.38,198.25,35.31354286]
[1735660316042,43.776884,198.38,198.23,15.31354286]
[1735660316043,23.776884,198.34,198.23,15.31354286]
[1735660316219,23.776884,198.34,198.23,20.0]
[1735660316625,23.776884,198.34,198.21,15.31354286]
[1735660316835,23.776884,198.34,198.2,15.31354286]
[1735660317037,23.776884,198.34,198.21,15.31354286]
[1735660317431,23.776884,198.34,198.19,12.6139]
[1735660317432,23.776884,198.32,198.2,15.31354286]
[1735660317948,23.776884,198.32,198.19,15.31354286]
[1735660318548,23.776884,198.32,198.21,15.31354286]
[1735660319253,23.776884,198.32,198.2,15.31354286]
[1735660320540,23.776884,198.32,198.19,15.31354286]
[1735660321329,23.776884,198.32,198.2,15.31354286]
[1735660321651,23.776884,198.32,198.21,35.31354286]
[1735660321950,1.5044,198.33,198.23,15.31354286]
[1735660322342,1.5044,198.33,198.25,15.31354286]
[1735660322545,1.5044,198.33,198.24,15.31354286]
[1735660322931,1.5044,198.33,198.23,15.31354286]
[1735660323450,1.5044,198.33,198.24,15.31354286]
[1735660323652,1.5044,198.33,198.23,35.31354286]
[1735660324240,1.5044,198.33,198.24,15.31354286]
[1735660326736,1.5044,198.33,198.23,35.31354286]
[1735660326938,23.776884,198.32,198.2,150.2129]
[1735660327144,23.776884,198.32,198.2,137.6]
[1735660327348,23.776884,198.32,198.18,15.31354286]
[1735660327655,23.776884,198.32,198.2,15.31354286]
[1735660328032,23.776884,198.32,198.19,152.91354286]
[1735660328366,23.776884,198.32,198.19,137.6]
[1735660329065,23.776884,198.32,198.2,15.31354286]
[1735660329767,23.776884,198.32,198.22,35.31354286]
[1735660329971,1.5044,198.33,198.23,15.31354286]
[1735660330265,1.5044,198.33,198.26,15.31354286]
[1735660330634,1.5044,198.33,198.25,15.31354286]
[1735660331532,1.5044,198.33,198.26,15.31354286]
[1735660331754,1.5044,198.33,198.27,15.31354286]
[1735660331968,1.5044,198.33,198.26,15.31354286]
[1735660333656,1.5044,198.33,198.28,15.31354286]
[1735660333856,7.7091,198.42,198.28,15.31354286]
[1735660334037,7.7091,198.42,198.32,15.31354286]
[1735660334456,7.7091,198.42,198.31,15.31354286]
[1735660335361,7.7091,198.42,198.32,15.31354286]
[1735660335666,7.7091,198.42,198.33,15.31354286]
[1735660336159,7.7091,198.42,198.32,15.31354286]
[1735660337960,23.776884,198.41,198.28,15.31354286]
[1735660338347,23.776884,198.41,198.27,152.91354286]
[1735660339479,23.776884,198.41,198.28,15.31354286]
[1735660343074,23.776884,198.41,198.29,15.31354286]
[1735660343369,1.6,198.48,198.36,15.31354286]
[1735660343567,1.6,198.48,198.37,15.31354286]
[1735660343747,1.6,198.48,198.36,15.31354286]
[1735660343947,1.6,198.48,198.38,15.31354286]
[1735660344272,1.6,198.48,198.4,15.31354286]
[1735660344483,1.6,198.48,198.41,15.31354286]
[1735660344680,1.6,198.48,198.42,15.31354286]
[1735660345393,15.96240285,198.54,198.42,15.31354286]
[1735660345682,23.776884,198.53,198.41,15.31354286]
[1735660346079,8.1062,198.54,198.41,15.31354286]
[1735660346596,23.776884,198.53,198.43,15.31354286]
[1735660347101,8.1062,198.54,198.43,15.31354286]
[1735660348414,8.1062,198.54,198.42,35.31354286]
[1735660348556,8.1062,198.54,198.43,15.31354286]
[1735660349266,8.1062,198.54,198.43,152.91354286]
[1735660351484,8.1062,198.54,198.43,137.6]
[1735660351859,8.1062,198.54,198.43,152.91354286]
[1735660353260,8.1062,198.54,198.43,137.6]
[1735660354972,8.1062,198.54,198.44,15.31354286]
[1735660354973,1.6,198.54,198.44,15.31354286]
[1735660355784,1.6,198.54,198.43,15.31354286]
[1735660357881,1.6,198.54,198.44,15.31354286]
[1735660358491,1.6,198.54,198.43,15.31354286]
[1735660358994,23.776884,198.53,198.42,137.6]
[1735660359495,23.776884,198.53,198.42,152.91354286]
[1735660360294,23.776884,198.53,198.42,147.37452506]
[1735660360591,23.776884,198.53,198.45,20.0]
[1735660360793,1.6,198.54,198.46,20.0]
[1735660361105,23.776884,198.53,198.43,137.6]
[1735660364312,23.776884,198.53,198.41,147.37452506]
[1735660364599,23.776884,198.53,198.42,9.77452506]
[1735660364905,23.776884,198.53,198.41,147.37452506]
[1735660365404,23.776884,198.53,198.42,9.77452506]
[1735660365574,1.6,198.54,198.45,20.0]
[1735660365774,1.6,198.54,198.41,137.6]
[1735660366001,1.6,198.54,198.41,147.37452506]
[1735660366411,23.776884,198.53,198.41,137.6]
[1735660366805,23.776884,198.53,198.41,147.37452506]
[1735660367101,23.776884,198.53,198.42,9.77452506]
[1735660368982,23.776884,198.53,198.41,147.37452506]
[1735660369196,23.776884,198.53,198.41,137.6]
[1735660369606,23.776884,198.53,198.42,9.77452506]
[1735660370112,23.776884,198.53,198.41,147.37452506]
[1735660373206,23.776884,198.53,198.4,147.37452506]
[1735660373582,23.776884,198.53,198.41,9.77452506]
[1735660374724,23.776884,198.53,198.43,9.77452506]
[1735660374932,1.6,198.54,198.44,29.77452506]
[1735660375229,1.6,198.54,198.45,9.77452506]
[1735660375418,1.6,198.54,198.44,137.6]
[1735660376435,1.6,198.54,198.44,147.37452506]
[1735660379132,1.6,198.54,198.47,9.77452506]
[1735660379338,1.6,198.54,198.47,29.77452506]
[1735660381942,1.6,198.54,198.48,9.77452506]
[1735660382136,1.6,198.54,198.49,9.77452506]
[1735660382356,1.6,198.54,198.51,20.0]
[1735660383257,6.6593,198.58,198.51,20.0]
[1735660383760,6.6593,198.58,198.49,137.6]
[1735660384135,6.6593,198.58,198.49,147.37452506]
[1735660384339,6.6593,198.58,198.51,9.77452506]
[1735660384820,6.6593,198.58,198.5,9.77452506]
[1735660385423,6.6593,198.58,198.51,9.77452506]
[1735660385824,6.6593,198.58,198.5,9.77452506]
[1735660386024,6.6593,198.58,198.51,9.77452506]
[1735660388348,6.6593,198.58,198.49,137.6]
[1735660388521,6.6593,198.58,198.5,9.77452506]
[1735660388724,6.6593,198.58,198.49,137.6]
[1735660388950,23.776884,198.57,198.49,137.6]
[1735660390065,23.776884,198.57,198.46,20.0]
[1735660390741,23.776884,198.55,198.43,9.77452506]
[1735660390950,23.776884,198.55,198.44,9.77452506]
[1735660392859,23.776884,198.55,198.43,9.77452506]
[1735660394350,23.776884,198.55,198.44,9.77452506]
[1735660395457,23.776884,198.55,198.42,150.1991]
[1735660396070,23.776884,198.55,198.42,159.97362506]
[1735660396855,23.776884,198.55,198.43,9.77452506]
[1735660397053,23.776884,198.55,198.42,159.97362506]
[1735660397257,23.776884,198.55,198.42,150.1991]
[1735660397461,6.6593,198.58,198.4,9.77452506]
[1735660397462,23.776884,198.53,198.4,9.77452506]
[1735660397740,23.776884,198.53,198.37,137.6]
[1735660398048,23.776884,198.51,198.38,9.77452506]
[1735660398262,32.003384,198.47,198.32,139.1908]
[1735660398563,32.003384,198.47,198.36,147.37452506]
[1735660398864,32.003384,198.47,198.37,9.77452506]
[1735660399668,8.2265,198.47,198.4,9.77452506]
[1735660399866,1.5649,198.47,198.44,9.77452506]
[1735660400168,1.5649,198.52,198.45,9.77452506]
[1735660400366,1.5649,198.52,198.45,29.77452506]
[1735660400769,1.5649,198.52,198.45,9.77452506]
[1735660401567,1.5649,198.52,198.45,29.77452506]
[1735660403358,1.5649,198.52,198.45,167.37452506]
[1735660403865,1.5649,198.52,198.45,137.6]
[1735660404861,23.776884,198.51,198.41,137.6]
[1735660405065,1.5649,198.52,198.41,9.77452506]
[1735660405243,1.5649,198.52,198.42,9.77452506]
[1735660405453,1.5649,198.52,198.43,9.77452506]
[1735660405663,1.5649,198.52,198.42,9.77452506]
[1735660408650,1.5649,198.52,198.41,29.77452506]
[1735660408967,1.5649,198.52,198.42,9.77452506]
[1735660409473,1.5649,198.52,198.42,147.37452506]
[1735660409676,1.5649,198.52,198.45,147.37452506]
[1735660410560,1.5649,198.52,198.45,137.6]
[1735660414677,23.776884,198.51,198.45,137.6]
[1735660415358,23.776884,198.51,198.41,157.6]
[1735660418879,23.776884,198.51,198.41,137.6]
[1735660420452,23.776884,198.51,198.41,147.37452506]
[1735660420657,23.776884,198.51,198.42,9.77452506]
[1735660421080,23.776884,198.51,198.41,9.77452506]
[1735660421675,23.776884,198.51,198.4,20.0]
[1735660421874,23.776884,198.51,198.41,9.77452506]
[1735660422178,1.5649,198.52,198.42,9.77452506]
[1735660424466,1.5649,198.52,198.43,9.77452506]
[1735660424672,1.5649,198.52,198.45,9.77452506]
[1735660425461,1.5649,198.52,198.44,9.77452506]
[1735660425883,1.5649,198.52,198.45,9.77452506]
[1735660426706,1.5649,198.52,198.44,9.77452506]
[1735660427165,1.5649,198.52,198.45,9.77452506]
[1735660430273,1.5649,198.52,198.45,147.37452506]
[1735660433889,1.5649,198.52,198.45,137.6]
[1735660436290,1.5649,198.52,198.44,137.6]
[1735660436687,1.43199105,198.52,198.44,137.6]
[1735660438086,1.43199105,198.52,198.44,147.37452506]
[1735660438503,1.43199105,198.52,198.44,137.6]
[1735660442389,1.43199105,198.52,198.43,147.37452506]
[1735660443497,1.43199105,198.52,198.44,9.77452506]
[1735660443880,1.43199105,198.52,198.43,147.37452506]
[1735660445499,1.43199105,198.52,198.45,9.77452506]
[1735660446707,1.43199105,198.52,198.44,9.77452506]
[1735660447207,1.43199105,198.52,198.45,9.77452506]
[1735660447389,1.6642,198.57,198.51,9.77452506]
[1735660447588,1.6642,198.57,198.53,9.77452506]
[1735660448401,1.6642,198.57,198.52,29.77452506]
[1735660449890,1.6642,198.57,198.53,9.77452506]
[1735660450092,1.6642,198.57,198.54,9.77452506]
[1735660450405,1.6642,198.57,198.53,9.77452506]
[1735660450586,25.361284,198.62,198.53,9.77452506]
[1735660451796,1.5844,198.62,198.53,9.77452506]
[1735660451996,1.5844,198.62,198.55,9.77452506]
[1735660452193,1.5844,198.62,198.56,9.77452506]
[1735660452890,1.5844,198.62,198.55,9.77452506]
[1735660454322,1.5844,198.62,198.55,147.37452506]
[1735660455314,1.5844,198.62,198.56,9.77452506]
[1735660455985,1.5844,198.62,198.56,147.37452506]
[1735660458417,1.5844,198.62,198.56,137.6]
[1735660460307,1.5844,198.62,198.56,147.37452506]
[1735660462624,27.6897,198.67,198.57,9.77452506]
[1735660464100,7.6897,198.67,198.59,9.77452506]
[1735660464312,1.5844,198.67,198.6,147.37452506]
[1735660464512,1.5844,198.67,198.61,9.77452506]
[1735660466216,1.5844,198.67,198.6,137.6]
[1735660466796,1.5844,198.67,198.6,147.37452506]
[1735660466997,1.5844,198.67,198.6,137.6]
[1735660467798,1.5844,198.67,198.6,147.37452506]
[1735660468534,1.5844,198.67,198.6,137.6]
[1735660469418,1.5844,198.67,198.58,147.37452506]
[1735660471115,1.5844,198.67,198.59,9.77452506]
[1735660471316,1.5844,198.67,198.58,147.37452506]
[1735660472329,1.5844,198.67,198.55,150.1909]
[1735660472514,23.776884,198.66,198.55,137.6]
[1735660472716,23.776884,198.64,198.55,137.6]
[1735660474039,23.776884,198.64,198.55,147.37452506]
[1735660474241,23.776884,198.64,198.55,137.6]
[1735660475451,6.3217,198.65,198.55,147.37452506]
[1735660477553,23.776884,198.64,198.55,137.6]
[1735660477740,23.776884,198.64,198.55,147.37452506]
[1735660478447,23.776884,198.64,198.55,9.77452506]
[1735660479126,6.3217,198.65,198.55,9.77452506]
[1735660479336,6.3217,198.65,198.56,9.77452506]
[1735660481139,6.3217,198.65,198.55,9.77452506]
[1735660481342,6.3217,198.65,198.54,9.77452506]
[1735660481633,6.3217,198.65,198.55,9.77452506]
[1735660482111,6.3217,198.65,198.56,9.77452506]
[1735660482511,23.776884,198.64,198.54,147.37452506]
[1735660482923,6.3217,198.65,198.57,9.77452506]
[1735660483126,1.5844,198.67,198.6,29.77452506]
[1735660483737,1.5844,198.67,198.61,9.77452506]
[1735660485021,1.5844,198.67,198.6,29.77452506]
[1735660485216,1.5844,198.67,198.6,20.0]
[1735660485726,23.776884,198.66,198.54,137.6]
[1735660485925,23.776884,198.66,198.56,9.77452506]
[1735660486738,21.5844,198.67,198.56,9.77452506]
[1735660487623,23.776884,198.66,198.56,9.77452506]
[1735660487829,23.776884,198.66,198.54,9.77452506]
[1735660488134,23.776884,198.64,198.54,20.0]
[1735660488340,23.776884,198.64,198.55,20.0]
[1735660488541,23.776884,198.64,198.52,147.37452506]
[1735660488838,23.776884,198.62,198.49,9.77452506]
[1735660489343,23.776884,198.62,198.49,147.37452506]
[1735660489655,23.776884,198.62,198.5,9.77452506]
[1735660490946,23.776884,198.62,198.49,9.77452506]
[1735660491620,23.776884,198.58,198.48,9.77452506]
[1735660491834,23.776884,198.6,198.49,9.77452506]
[1735660492034,23.776884,198.6,198.5,9.77452506]
[1735660492234,23.776884,198.6,198.49,9.77452506]
[1735660493326,23.776884,198.6,198.48,9.77452506]
[1735660495561,23.776884,198.6,198.49,9.77452506]
[1735660496073,23.776884,198.6,198.48,9.77452506]
[1735660496463,23.776884,198.6,198.47,9.77452506]
[1735660497165,23.776884,198.6,198.49,9.77452506]
[1735660497333,23.776884,198.6,198.5,9.77452506]
[1735660497535,8.1347,198.61,198.51,147.37452506]
[1735660497751,8.1347,198.61,198.53,9.77452506]
[1735660499267,8.1347,198.61,198.52,147.37452506]
[1735660499839,8.1347,198.61,198.52,137.6]
[1735660500047,23.776884,198.6,198.52,137.6]
[1735660500349,23.776884,198.6,198.47,147.37452506]
[1735660500546,23.776884,198.58,198.47,137.6]
[1735660500856,23.776884,198.58,198.46,9.77452506]
[1735660502443,1.52,198.59,198.54,9.77452506]
[1735660502667,1.52,198.59,198.56,9.77452506]
[1735660502970,1.52,198.59,198.54,9.77452506]
[1735660503468,1.52,198.59,198.55,9.77452506]
[1735660504044,1.52,198.59,198.53,137.6]
[1735660504238,1.52,198.59,198.53,147.37452506]
[1735660504758,9.40312595,198.69,198.58,147.37452506]
[1735660504958,9.40312595,198.69,198.61,29.77452506]
[1735660505165,1.52,198.69,198.61,20.0]
[1735660506342,1.52,198.69,198.6,147.37452506]
[1735660506850,1.52,198.69,198.6,137.6]
[1735660507361,21.52,198.69,198.6,137.6]
[1735660507958,23.776884,198.68,198.6,137.6]
[1735660508144,23.776884,198.68,198.55,9.77452506]
[1735660508878,23.776884,198.68,198.55,20.0]
[1735660509357,20.0,198.65,198.54,9.77452506]
[1735660509560,23.776884,198.64,198.53,147.37452506]
[1735660509888,23.776884,198.64,198.53,137.6]
[1735660509889,6.019,198.63,198.53,137.6]
[1735660510065,1.5767,198.62,198.53,137.6]
[1735660510260,1.5767,198.62,198.53,152.85680772]
[1735660511495,1.5767,198.62,198.55,15.25680772]
[1735660511663,1.5767,198.62,198.54,15.25680772]
[1735660512376,1.5767,198.62,198.56,15.25680772]
[1735660512573,1.5767,198.62,198.57,152.85680772]
[1735660512779,1.5767,198.67,198.59,15.25680772]
[1735660515387,1.5767,198.67,198.58,152.85680772]
[1735660516493,1.5767,198.67,198.58,137.6]
[1735660517074,23.776884,198.66,198.56,15.25680772]
[1735660517402,23.776884,198.66,198.55,15.25680772]
[1735660517692,23.776884,198.66,198.53,15.25680772]
[1735660517867,23.776884,198.66,198.54,15.25680772]
[1735660518580,23.776884,198.66,198.52,15.25680772]
[1735660520877,23.776884,198.66,198.53,35.25680772]
[1735660521107,23.776884,198.66,198.54,15.25680772]
[1735660521890,1.5767,198.67,198.56,15.25680772]
[1735660522195,23.776884,198.66,198.56,15.25680772]
[1735660522571,23.776884,198.66,198.55,15.25680772]
[1735660522770,23.776884,198.66,198.55,35.25680772]
[1735660524799,23.776884,198.66,198.55,20.0]
[1735660525401,23.776884,198.66,198.54,15.25680772]
[1735660525979,23.776884,198.66,198.55,15.25680772]
[1735660526385,23.776884,198.66,198.53,35.25680772]
[1735660526694,23.776884,198.66,198.53,20.0]